[Event "Titled Tuesday Blitz January 17 Early 2023"]
[White "Sargissyan, Sargis"]
[Black "Dourerassou, Jonathan"]
[WhiteFideId "13303210"]
[BlackFideId "628050"]
[WhiteElo "2234"]
[BlackElo "2414"]
[Result "0-1"]
[Round "02"]
[TimeControl "180+2"]
[Date "2023.01.17"]
[WhiteClock "0:00:04"]
[BlackClock "0:01:35"]

1. e4 {[%clk 0:03:00]}  e6 {[%clk 0:02:58]} 2. d4 {[%clk 0:03:00]}  d5 {[%clk 0:02:58]} 3. Nc3 {[%clk 0:03:01]}  dxe4 {[%clk 0:02:56]} 4. Nxe4 {[%clk 0:03:01]}  Nd7 {[%clk 0:02:57]} 5. Nf3 {[%clk 0:03:00]}  Ngf6 {[%clk 0:02:57]} 6. Bd3 {[%clk 0:03:01]}  Nxe4 {[%clk 0:02:54]} 7. Bxe4 {[%clk 0:03:00]}  Nf6 {[%clk 0:02:55]} 8. Bg5 {[%clk 0:02:59]}  Be7 {[%clk 0:02:55]} 9. Bxf6 {[%clk 0:02:55]}  Bxf6 {[%clk 0:02:56]} 10. Qd3 {[%clk 0:02:50]}  c6 {[%clk 0:02:46]} 11. O-O-O {[%clk 0:02:38]}  Qa5 {[%clk 0:02:40]} 12. Kb1 {[%clk 0:02:33]}  Bd7 {[%clk 0:02:40]} 13. Ne5 {[%clk 0:02:24]}  Rd8 {[%clk 0:02:32]} 14. f4 {[%clk 0:02:22]}  h6 {[%clk 0:02:28]} 15. g4 {[%clk 0:02:19]}  O-O {[%clk 0:02:27]} 16. h4 {[%clk 0:02:16]}  c5 {[%clk 0:02:22]} 17. g5 {[%clk 0:02:14]}  Bxe5 {[%clk 0:02:21]} 18. fxe5 {[%clk 0:02:08]}  h5 {[%clk 0:02:13]} 19. Qf3 {[%clk 0:01:01]}  g6 {[%clk 0:02:04]} 20. Qf6 {[%clk 0:00:59]}  Be8 {[%clk 0:01:59]} 21. d5 {[%clk 0:00:58]}  exd5 {[%clk 0:01:57]} 22. Bxd5 {[%clk 0:00:58]}  Rxd5 {[%clk 0:01:55]} 23. Rxd5 {[%clk 0:00:57]}  Bc6 {[%clk 0:01:55]} 24. c4 {[%clk 0:00:29]}  Bxd5 {[%clk 0:01:53]} 25. cxd5 {[%clk 0:00:29]}  Qd2 {[%clk 0:01:52]} 26. e6 {[%clk 0:00:27]}  Qd3+ {[%clk 0:01:50]} 27. Ka1 {[%clk 0:00:26]}  Qxd5 {[%clk 0:01:50]} 28. exf7+ {[%clk 0:00:26]}  Qxf7 {[%clk 0:01:51]} 29. Qxf7+ {[%clk 0:00:19]}  Rxf7 {[%clk 0:01:52]} 30. Rd1 {[%clk 0:00:19]}  b6 {[%clk 0:01:50]} 31. Kb1 {[%clk 0:00:19]}  Rf4 {[%clk 0:01:47]} 32. Rd6 {[%clk 0:00:19]}  Kf7 {[%clk 0:01:43]} 33. Rd7+ {[%clk 0:00:18]}  Ke6 {[%clk 0:01:44]} 34. Rxa7 {[%clk 0:00:18]}  Rxh4 {[%clk 0:01:44]} 35. Rb7 {[%clk 0:00:17]}  Rb4 {[%clk 0:01:44]} 36. a3 {[%clk 0:00:16]}  Rb3 {[%clk 0:01:43]} 37. Kc2 {[%clk 0:00:16]}  c4 {[%clk 0:01:44]} 38. Rc7 {[%clk 0:00:16]}  b5 {[%clk 0:01:44]} 39. Rc5 {[%clk 0:00:15]}  h4 {[%clk 0:01:42]} 40. a4 {[%clk 0:00:11]}  h3 {[%clk 0:01:41]} 41. axb5 {[%clk 0:00:02]}  h2 {[%clk 0:01:41]} 42. Rc6+ {[%clk 0:00:03]}  Kf5 {[%clk 0:01:40]} 43. Rf6+ {[%clk 0:00:02]}  Kxg5 {[%clk 0:01:38]} 44. Rf1 {[%clk 0:00:03]}  Rh3 {[%clk 0:01:35]} 45. Rh1 {[%clk 0:00:02]}  Kf4 {[%clk 0:01:35]} 46. b6 {[%clk 0:00:03]}  Kg3 {[%clk 0:01:35]} 47. b7 {[%clk 0:00:03]}  Rh8 {[%clk 0:01:35]} 48. Kc3 {[%clk 0:00:03]}  Kg2 {[%clk 0:01:36]} 49. Rxh2+ {[%clk 0:00:03]}  Kxh2 {[%clk 0:01:35]} 50. Kxc4 {[%clk 0:00:04]}  Rb8 {[%clk 0:01:35]} 0-1


[Site "https://www.chess.com"]

[Event "Titled Tuesday Blitz January 17 Early 2023"]
[White "Weetik, Vjacheslav"]
[Black "Lauridsen, Jesper Morch"]
[WhiteFideId "4153472"]
[BlackFideId "1401890"]
[WhiteElo "2423"]
[BlackElo "2309"]
[Result "0-1"]
[Round "02"]
[TimeControl "180+2"]
[Date "2023.01.17"]
[WhiteClock "0:00:01"]
[BlackClock "0:00:04"]

1. d4 {[%clk 0:02:59]}  d5 {[%clk 0:02:59]} 2. Nf3 {[%clk 0:02:59]}  Nf6 {[%clk 0:02:58]} 3. c4 {[%clk 0:02:59]}  e6 {[%clk 0:02:58]} 4. g3 {[%clk 0:02:59]}  c5 {[%clk 0:02:57]} 5. cxd5 {[%clk 0:02:59]}  exd5 {[%clk 0:02:57]} 6. Bg2 {[%clk 0:02:59]}  Nc6 {[%clk 0:02:57]} 7. O-O {[%clk 0:02:59]}  Be7 {[%clk 0:02:57]} 8. Nc3 {[%clk 0:02:52]}  O-O {[%clk 0:02:56]} 9. dxc5 {[%clk 0:02:40]}  d4 {[%clk 0:02:55]} 10. Na4 {[%clk 0:02:30]}  Bf5 {[%clk 0:02:55]} 11. Bf4 {[%clk 0:02:11]}  Be4 {[%clk 0:02:41]} 12. a3 {[%clk 0:02:01]}  Nd5 {[%clk 0:02:15]} 13. Bd2 {[%clk 0:01:07]}  b5 {[%clk 0:02:14]} 14. cxb6 {[%clk 0:01:06]}  axb6 {[%clk 0:02:14]} 15. Rc1 {[%clk 0:01:00]}  Rc8 {[%clk 0:02:04]} 16. Ne1 {[%clk 0:00:59]}  Bxg2 {[%clk 0:01:47]} 17. Kxg2 {[%clk 0:01:00]}  Ne5 {[%clk 0:01:06]} 18. Qb3 {[%clk 0:00:25]}  Rxc1 {[%clk 0:00:56]} 19. Bxc1 {[%clk 0:00:26]}  Qa8 {[%clk 0:00:54]} 20. Nf3 {[%clk 0:00:18]}  d3 {[%clk 0:00:45]} 21. e4 {[%clk 0:00:12]}  Nxf3 {[%clk 0:00:31]} 22. Qxd5 {[%clk 0:00:07]}  Qxa4 {[%clk 0:00:10]} 23. Kxf3 {[%clk 0:00:07]}  Rd8 {[%clk 0:00:10]} 24. Qb7 {[%clk 0:00:05]}  Bf6 {[%clk 0:00:07]} 25. Be3 {[%clk 0:00:02]}  h5 {[%clk 0:00:06]} 26. Qxb6 {[%clk 0:00:02]}  Re8 {[%clk 0:00:05]} 27. Qb4 {[%clk 0:00:02]}  Qd7 {[%clk 0:00:05]} 28. Kg2 {[%clk 0:00:02]}  h4 {[%clk 0:00:04]} 29. Rd1 {[%clk 0:00:03]}  h3+ {[%clk 0:00:04]} 30. Kf1 {[%clk 0:00:02]}  Qg4 {[%clk 0:00:05]} 31. Qe1 {[%clk 0:00:01]}  Qf3 {[%clk 0:00:04]} 0-1


[Site "https://www.chess.com"]

[Event "Titled Tuesday Blitz January 17 Early 2023"]
[White "Mitrovic, Darko R"]
[Black "Papasimakopoulos, Alexandros"]
[WhiteFideId "927023"]
[BlackFideId "4244125"]
[WhiteElo "2220"]
[BlackElo "2401"]
[Result "0-1"]
[Round "02"]
[TimeControl "180+2"]
[Date "2023.01.17"]
[WhiteClock "0:00:07"]
[BlackClock "0:01:58"]

1. d4 {[%clk 0:03:00]}  e6 {[%clk 0:02:59]} 2. c4 {[%clk 0:03:00]}  Nf6 {[%clk 0:02:59]} 3. Nf3 {[%clk 0:03:00]}  Bb4+ {[%clk 0:03:00]} 4. Bd2 {[%clk 0:03:00]}  Qe7 {[%clk 0:03:00]} 5. g3 {[%clk 0:02:59]}  Nc6 {[%clk 0:02:59]} 6. Bg2 {[%clk 0:02:59]}  Bxd2+ {[%clk 0:02:59]} 7. Qxd2 {[%clk 0:02:57]}  Ne4 {[%clk 0:02:59]} 8. Qc2 {[%clk 0:02:52]}  Qb4+ {[%clk 0:02:54]} 9. Nc3 {[%clk 0:02:23]}  Nxc3 {[%clk 0:02:52]} 10. Qxc3 {[%clk 0:02:22]}  Qxc3+ {[%clk 0:02:52]} 11. bxc3 {[%clk 0:02:23]}  Rb8 {[%clk 0:02:52]} 12. c5 {[%clk 0:02:22]}  b6 {[%clk 0:02:49]} 13. cxb6 {[%clk 0:02:20]}  axb6 {[%clk 0:02:49]} 14. O-O {[%clk 0:02:18]}  Bb7 {[%clk 0:02:49]} 15. c4 {[%clk 0:02:07]}  Ke7 {[%clk 0:02:38]} 16. Rfc1 {[%clk 0:01:44]}  Ra8 {[%clk 0:02:36]} 17. c5 {[%clk 0:01:31]}  bxc5 {[%clk 0:02:27]} 18. Rxc5 {[%clk 0:01:29]}  Ra7 {[%clk 0:02:27]} 19. h4 {[%clk 0:01:26]}  Rha8 {[%clk 0:02:27]} 20. d5 {[%clk 0:00:56]}  exd5 {[%clk 0:02:24]} 21. Rxd5 {[%clk 0:00:53]}  Rxa2 {[%clk 0:02:23]} 22. Rad1 {[%clk 0:00:29]}  d6 {[%clk 0:02:23]} 23. Rb5 {[%clk 0:00:25]}  Ra1 {[%clk 0:02:12]} 24. Rxa1 {[%clk 0:00:20]}  Rxa1+ {[%clk 0:02:13]} 25. Kh2 {[%clk 0:00:20]}  Ba6 {[%clk 0:02:12]} 26. Rb2 {[%clk 0:00:19]}  Rc1 {[%clk 0:02:07]} 27. e3 {[%clk 0:00:18]}  Bf1 {[%clk 0:02:04]} 28. Bxf1 {[%clk 0:00:16]}  Rxf1 {[%clk 0:02:05]} 29. Rc2 {[%clk 0:00:15]}  Kd7 {[%clk 0:02:05]} 30. Kg2 {[%clk 0:00:15]}  Ra1 {[%clk 0:02:02]} 31. Ng5 {[%clk 0:00:15]}  f6 {[%clk 0:02:02]} 32. Nxh7 {[%clk 0:00:15]}  Ra8 {[%clk 0:02:02]} 33. f4 {[%clk 0:00:04]}  Rh8 {[%clk 0:01:59]} 34. Ng5 {[%clk 0:00:04]}  fxg5 {[%clk 0:01:59]} 35. hxg5 {[%clk 0:00:05]}  Nb4 {[%clk 0:01:56]} 36. Rd2 {[%clk 0:00:04]}  c5 {[%clk 0:01:56]} 37. g4 {[%clk 0:00:03]}  c4 {[%clk 0:01:55]} 38. Kf3 {[%clk 0:00:01]}  c3 {[%clk 0:01:54]} 39. Rd1 {[%clk 0:00:01]}  c2 {[%clk 0:01:54]} 40. Rc1 {[%clk 0:00:02]}  Nd3 {[%clk 0:01:53]} 41. Rxc2 {[%clk 0:00:02]}  Ne1+ {[%clk 0:01:53]} 42. Ke4 {[%clk 0:00:03]}  Nxc2 {[%clk 0:01:54]} 43. Kf5 {[%clk 0:00:03]}  Nxe3+ {[%clk 0:01:54]} 44. Kg6 {[%clk 0:00:04]}  Rh4 {[%clk 0:01:52]} 45. Kxg7 {[%clk 0:00:04]}  Rxg4 {[%clk 0:01:52]} 46. g6 {[%clk 0:00:04]}  Rxf4 {[%clk 0:01:52]} 47. Kh6 {[%clk 0:00:04]}  Rf1 {[%clk 0:01:49]} 48. g7 {[%clk 0:00:03]}  Nf5+ {[%clk 0:01:50]} 49. Kg6 {[%clk 0:00:03]}  Nxg7 {[%clk 0:01:50]} 50. Kxg7 {[%clk 0:00:03]}  d5 {[%clk 0:01:50]} 51. Kg6 {[%clk 0:00:03]}  d4 {[%clk 0:01:51]} 52. Kg5 {[%clk 0:00:04]}  Ke6 {[%clk 0:01:52]} 53. Kg4 {[%clk 0:00:04]}  Rf5 {[%clk 0:01:52]} 54. Kg3 {[%clk 0:00:05]}  d3 {[%clk 0:01:53]} 55. Kg4 {[%clk 0:00:06]}  d2 {[%clk 0:01:54]} 56. Kg3 {[%clk 0:00:06]}  d1=Q {[%clk 0:01:55]} 57. Kg2 {[%clk 0:00:06]}  Qd7 {[%clk 0:01:56]} 58. Kg3 {[%clk 0:00:07]}  Qf7 {[%clk 0:01:57]} 59. Kg4 {[%clk 0:00:07]}  Qg6+ {[%clk 0:01:58]} 0-1


[Site "https://www.chess.com"]

[Event "Titled Tuesday Blitz January 17 Early 2023"]
[White "Torres Dominguez, David"]
[Black "Vlassov, Nikolai"]
[WhiteFideId "2220857"]
[BlackFideId "4103360"]
[WhiteElo "1994"]
[BlackElo "2283"]
[Result "0-1"]
[Round "02"]
[TimeControl "180+2"]
[Date "2023.01.17"]
[WhiteClock "0:00:02"]
[BlackClock "0:00:08"]

1. e4 {[%clk 0:02:58]}  Nc6 {[%clk 0:02:58]} 2. Nc3 {[%clk 0:02:57]}  Nf6 {[%clk 0:02:58]} 3. f4 {[%clk 0:02:41]}  d5 {[%clk 0:02:57]} 4. e5 {[%clk 0:02:41]}  d4 {[%clk 0:02:52]} 5. exf6 {[%clk 0:02:37]}  dxc3 {[%clk 0:02:51]} 6. fxg7 {[%clk 0:02:36]}  cxd2+ {[%clk 0:02:51]} 7. Qxd2 {[%clk 0:02:31]}  Bxg7 {[%clk 0:02:50]} 8. Qxd8+ {[%clk 0:02:22]}  Nxd8 {[%clk 0:02:49]} 9. c3 {[%clk 0:02:20]}  Bf5 {[%clk 0:02:48]} 10. Be3 {[%clk 0:02:12]}  Ne6 {[%clk 0:02:43]} 11. O-O-O {[%clk 0:02:04]}  h5 {[%clk 0:02:42]} 12. Ne2 {[%clk 0:01:54]}  h4 {[%clk 0:02:40]} 13. Nd4 {[%clk 0:01:47]}  Nxd4 {[%clk 0:02:22]} 14. Bxd4 {[%clk 0:01:47]}  O-O {[%clk 0:02:21]} 15. Be2 {[%clk 0:01:41]}  Rad8 {[%clk 0:02:05]} 16. g3 {[%clk 0:01:31]}  Bxd4 {[%clk 0:02:01]} 17. cxd4 {[%clk 0:01:25]}  Rd6 {[%clk 0:02:00]} 18. Bf3 {[%clk 0:01:20]}  c6 {[%clk 0:01:51]} 19. g4 {[%clk 0:01:20]}  Be6 {[%clk 0:01:49]} 20. Rhe1 {[%clk 0:01:16]}  Rd7 {[%clk 0:01:37]} 21. a3 {[%clk 0:01:14]}  Rfd8 {[%clk 0:01:34]} 22. f5 {[%clk 0:01:08]}  Bb3 {[%clk 0:01:31]} 23. Rd3 {[%clk 0:01:07]}  Bc4 {[%clk 0:01:31]} 24. Rde3 {[%clk 0:00:57]}  Kf8 {[%clk 0:01:27]} 25. b3 {[%clk 0:00:57]}  Ba6 {[%clk 0:01:14]} 26. Be2 {[%clk 0:00:52]}  Bxe2 {[%clk 0:00:34]} 27. R1xe2 {[%clk 0:00:52]}  f6 {[%clk 0:00:32]} 28. Kc2 {[%clk 0:00:48]}  Kf7 {[%clk 0:00:32]} 29. Kc3 {[%clk 0:00:45]}  Rc8 {[%clk 0:00:27]} 30. b4 {[%clk 0:00:37]}  a5 {[%clk 0:00:22]} 31. bxa5 {[%clk 0:00:29]}  Rcc7 {[%clk 0:00:17]} 32. Rh3 {[%clk 0:00:26]}  Rd5 {[%clk 0:00:16]} 33. Rxh4 {[%clk 0:00:16]}  Rxa5 {[%clk 0:00:16]} 34. Re3 {[%clk 0:00:13]}  Rxa3+ {[%clk 0:00:16]} 35. Kd2 {[%clk 0:00:13]}  Rxe3 {[%clk 0:00:15]} 36. Kxe3 {[%clk 0:00:13]}  b5 {[%clk 0:00:16]} 37. Rh7+ {[%clk 0:00:12]}  Ke8 {[%clk 0:00:15]} 38. Rh8+ {[%clk 0:00:12]}  Kf7 {[%clk 0:00:15]} 39. Rb8 {[%clk 0:00:12]}  Ra7 {[%clk 0:00:11]} 40. h4 {[%clk 0:00:11]}  Ra3+ {[%clk 0:00:11]} 41. Kf4 {[%clk 0:00:10]}  Rd3 {[%clk 0:00:11]} 42. Ke4 {[%clk 0:00:10]}  Rh3 {[%clk 0:00:10]} 43. h5 {[%clk 0:00:09]}  Rg3 {[%clk 0:00:09]} 44. Kf4 {[%clk 0:00:10]}  Rc3 {[%clk 0:00:09]} 45. Rb6 {[%clk 0:00:08]}  Kg7 {[%clk 0:00:07]} 46. d5 {[%clk 0:00:06]}  cxd5 {[%clk 0:00:06]} 47. Rxb5 {[%clk 0:00:06]}  Rc4+ {[%clk 0:00:07]} 48. Kf3 {[%clk 0:00:06]}  Rd4 {[%clk 0:00:07]} 49. Rb7 {[%clk 0:00:05]}  Kf7 {[%clk 0:00:06]} 50. Rd7 {[%clk 0:00:05]}  Rd3+ {[%clk 0:00:06]} 51. Kf4 {[%clk 0:00:05]}  Rd1 {[%clk 0:00:06]} 52. h6 {[%clk 0:00:05]}  Rf1+ {[%clk 0:00:05]} 53. Kg3 {[%clk 0:00:04]}  Rh1 {[%clk 0:00:05]} 54. h7 {[%clk 0:00:04]}  Rxh7 {[%clk 0:00:04]} 55. Rxd5 {[%clk 0:00:05]}  Rh1 {[%clk 0:00:04]} 56. Rd7 {[%clk 0:00:05]}  Rg1+ {[%clk 0:00:05]} 57. Kf3 {[%clk 0:00:05]}  Ke8 {[%clk 0:00:04]} 58. Ra7 {[%clk 0:00:04]}  Rf1+ {[%clk 0:00:04]} 59. Kg3 {[%clk 0:00:04]}  Re1 {[%clk 0:00:05]} 60. Kf3 {[%clk 0:00:04]}  Kf7 {[%clk 0:00:05]} 61. Kg3 {[%clk 0:00:05]}  Re5 {[%clk 0:00:05]} 62. Kf4 {[%clk 0:00:05]}  Rd5 {[%clk 0:00:05]} 63. g5 {[%clk 0:00:05]}  Rd4+ {[%clk 0:00:05]} 64. Ke3 {[%clk 0:00:05]}  Rg4 {[%clk 0:00:05]} 65. gxf6 {[%clk 0:00:05]}  Kxf6 {[%clk 0:00:06]} 66. Ra5 {[%clk 0:00:04]}  Rg5 {[%clk 0:00:06]} 67. Ke4 {[%clk 0:00:04]}  Rg4+ {[%clk 0:00:06]} 68. Ke3 {[%clk 0:00:03]}  Rh4 {[%clk 0:00:07]} 69. Ra6+ {[%clk 0:00:03]}  Kxf5 {[%clk 0:00:07]} 70. Ra5+ {[%clk 0:00:03]}  e5 {[%clk 0:00:07]} 71. Ke2 {[%clk 0:00:01]}  Rh3 {[%clk 0:00:08]} 72. Kf2 {[%clk 0:00:01]}  Kf4 {[%clk 0:00:08]} 73. Ke2 {[%clk 0:00:02]}  Rh2+ {[%clk 0:00:08]} 0-1


[Site "https://www.chess.com"]

[Event "Titled Tuesday Blitz January 17 Early 2023"]
[White "Tharushi, T H D Niklesha"]
[Black "Belozerov, Andrei"]
[WhiteFideId "9918264"]
[BlackFideId "4120213"]
[WhiteElo "1570"]
[BlackElo "2461"]
[Result "0-1"]
[Round "02"]
[TimeControl "180+2"]
[Date "2023.01.17"]
[WhiteClock "0:01:00"]
[BlackClock "0:00:22"]

1. e4 {[%clk 0:03:00]}  c5 {[%clk 0:02:57]} 2. Nf3 {[%clk 0:02:54]}  Nc6 {[%clk 0:02:57]} 3. d4 {[%clk 0:02:51]}  cxd4 {[%clk 0:02:57]} 4. Nxd4 {[%clk 0:02:50]}  Nf6 {[%clk 0:02:57]} 5. Nc3 {[%clk 0:02:46]}  e5 {[%clk 0:02:58]} 6. Ndb5 {[%clk 0:02:45]}  d6 {[%clk 0:02:58]} 7. Nd5 {[%clk 0:02:40]}  Nxd5 {[%clk 0:02:56]} 8. exd5 {[%clk 0:02:41]}  Nb8 {[%clk 0:02:55]} 9. a4 {[%clk 0:02:40]}  Be7 {[%clk 0:02:52]} 10. Be2 {[%clk 0:02:34]}  O-O {[%clk 0:02:51]} 11. O-O {[%clk 0:02:34]}  f5 {[%clk 0:02:46]} 12. c4 {[%clk 0:02:33]}  a6 {[%clk 0:02:37]} 13. Nc3 {[%clk 0:02:29]}  a5 {[%clk 0:02:36]} 14. b3 {[%clk 0:02:28]}  Nd7 {[%clk 0:02:33]} 15. Ba3 {[%clk 0:02:29]}  b6 {[%clk 0:02:28]} 16. Nb5 {[%clk 0:02:27]}  Nc5 {[%clk 0:02:26]} 17. b4 {[%clk 0:02:23]}  axb4 {[%clk 0:02:24]} 18. Bxb4 {[%clk 0:02:24]}  Bf6 {[%clk 0:02:20]} 19. a5 {[%clk 0:02:15]}  bxa5 {[%clk 0:02:16]} 20. Bxc5 {[%clk 0:02:14]}  dxc5 {[%clk 0:02:16]} 21. d6 {[%clk 0:02:14]}  Bb7 {[%clk 0:02:06]} 22. Nc7 {[%clk 0:02:13]}  e4 {[%clk 0:01:47]} 23. Nxa8 {[%clk 0:02:12]}  Bxa8 {[%clk 0:01:40]} 24. d7 {[%clk 0:02:07]}  Bxa1 {[%clk 0:01:29]} 25. Qxa1 {[%clk 0:02:01]}  Qxd7 {[%clk 0:01:29]} 26. Qxa5 {[%clk 0:02:01]}  Qe7 {[%clk 0:00:51]} 27. Ra1 {[%clk 0:01:56]}  Rd8 {[%clk 0:00:46]} 28. Qa7 {[%clk 0:01:44]}  Qxa7 {[%clk 0:00:45]} 29. Rxa7 {[%clk 0:01:45]}  Bc6 {[%clk 0:00:39]} 30. Rc7 {[%clk 0:01:44]}  Rd2 {[%clk 0:00:36]} 31. Rxc6 {[%clk 0:01:42]}  Rxe2 {[%clk 0:00:36]} 32. Kf1 {[%clk 0:01:43]}  Rc2 {[%clk 0:00:32]} 33. Rxc5 {[%clk 0:01:43]}  g6 {[%clk 0:00:33]} 34. h3 {[%clk 0:01:39]}  Kg7 {[%clk 0:00:32]} 35. g4 {[%clk 0:01:38]}  Kf6 {[%clk 0:00:31]} 36. gxf5 {[%clk 0:01:34]}  gxf5 {[%clk 0:00:30]} 37. h4 {[%clk 0:01:35]}  h5 {[%clk 0:00:29]} 38. Ke1 {[%clk 0:01:33]}  Ke6 {[%clk 0:00:29]} 39. Rc6+ {[%clk 0:01:27]}  Ke5 {[%clk 0:00:28]} 40. Rh6 {[%clk 0:01:26]}  Rxc4 {[%clk 0:00:24]} 41. Rxh5 {[%clk 0:01:26]}  Kf4 {[%clk 0:00:24]} 42. Rh8 {[%clk 0:01:26]}  Rc1+ {[%clk 0:00:23]} 43. Ke2 {[%clk 0:01:25]}  Rh1 {[%clk 0:00:24]} 44. h5 {[%clk 0:01:25]}  Rh2 {[%clk 0:00:24]} 45. Kf1 {[%clk 0:01:03]}  Kf3 {[%clk 0:00:23]} 46. h6 {[%clk 0:01:00]}  Rh1# {[%clk 0:00:22]} 0-1


[Site "https://www.chess.com"]

[Event "Titled Tuesday Blitz January 17 Early 2023"]
[White "Rodrigues, Leonardo De Miranda"]
[Black "Terry, Renato"]
[WhiteFideId "2108658"]
[BlackFideId "3803457"]
[WhiteElo "2112"]
[BlackElo "2520"]
[Result "0-1"]
[Round "02"]
[TimeControl "180+2"]
[Date "2023.01.17"]
[WhiteClock "0:00:10"]
[BlackClock "0:01:23"]

1. e4 {[%clk 0:03:00]}  e6 {[%clk 0:02:58]} 2. d4 {[%clk 0:02:57]}  d5 {[%clk 0:02:59]} 3. Nd2 {[%clk 0:02:53]}  Be7 {[%clk 0:02:58]} 4. Ngf3 {[%clk 0:02:39]}  Nf6 {[%clk 0:02:58]} 5. e5 {[%clk 0:02:33]}  Nfd7 {[%clk 0:02:58]} 6. Bd3 {[%clk 0:02:31]}  c5 {[%clk 0:02:58]} 7. c3 {[%clk 0:02:27]}  Nc6 {[%clk 0:02:59]} 8. O-O {[%clk 0:02:22]}  g5 {[%clk 0:02:59]} 9. dxc5 {[%clk 0:02:07]}  Ndxe5 {[%clk 0:02:58]} 10. Nxe5 {[%clk 0:02:03]}  Nxe5 {[%clk 0:02:59]} 11. Nb3 {[%clk 0:01:58]}  Nxd3 {[%clk 0:02:57]} 12. Qxd3 {[%clk 0:01:59]}  f6 {[%clk 0:02:57]} 13. Re1 {[%clk 0:01:40]}  e5 {[%clk 0:02:56]} 14. Qb5+ {[%clk 0:01:13]}  Qd7 {[%clk 0:02:53]} 15. a4 {[%clk 0:01:12]}  O-O {[%clk 0:02:48]} 16. Rd1 {[%clk 0:01:04]}  a6 {[%clk 0:02:36]} 17. Qxd7 {[%clk 0:01:02]}  Bxd7 {[%clk 0:02:37]} 18. Na5 {[%clk 0:00:56]}  Bc6 {[%clk 0:02:10]} 19. b4 {[%clk 0:00:54]}  Rfd8 {[%clk 0:01:59]} 20. Be3 {[%clk 0:00:52]}  Kf7 {[%clk 0:01:58]} 21. b5 {[%clk 0:00:48]}  axb5 {[%clk 0:01:58]} 22. axb5 {[%clk 0:00:47]}  Bxb5 {[%clk 0:01:58]} 23. Nxb7 {[%clk 0:00:44]}  Rdb8 {[%clk 0:01:58]} 24. Nd6+ {[%clk 0:00:38]}  Bxd6 {[%clk 0:01:58]} 25. cxd6 {[%clk 0:00:39]}  Ke6 {[%clk 0:01:56]} 26. Bc5 {[%clk 0:00:35]}  Bc4 {[%clk 0:01:46]} 27. f3 {[%clk 0:00:32]}  Rc8 {[%clk 0:01:39]} 28. Bb4 {[%clk 0:00:29]}  Rcb8 {[%clk 0:01:38]} 29. Rxa8 {[%clk 0:00:28]}  Rxa8 {[%clk 0:01:38]} 30. Rd2 {[%clk 0:00:26]}  f5 {[%clk 0:01:37]} 31. Kf2 {[%clk 0:00:23]}  f4 {[%clk 0:01:38]} 32. g3 {[%clk 0:00:23]}  Ra1 {[%clk 0:01:36]} 33. Kg2 {[%clk 0:00:22]}  h5 {[%clk 0:01:35]} 34. gxf4 {[%clk 0:00:21]}  gxf4 {[%clk 0:01:34]} 35. Kh3 {[%clk 0:00:20]}  Rf1 {[%clk 0:01:29]} 36. Kh4 {[%clk 0:00:16]}  Rxf3 {[%clk 0:01:29]} 37. Kxh5 {[%clk 0:00:16]}  Rh3+ {[%clk 0:01:24]} 38. Kg4 {[%clk 0:00:16]}  Rh7 {[%clk 0:01:23]} 39. h4 {[%clk 0:00:16]}  Rg7+ {[%clk 0:01:24]} 40. Kf3 {[%clk 0:00:14]}  Rg3+ {[%clk 0:01:22]} 41. Kf2 {[%clk 0:00:14]}  e4 {[%clk 0:01:23]} 42. Rd1 {[%clk 0:00:10]}  e3+ {[%clk 0:01:23]} 0-1


[Site "https://www.chess.com"]

[Event "Titled Tuesday Blitz January 17 Early 2023"]
[White "Reprintsev, Alexander"]
[Black "Ozen, Bahadir"]
[WhiteFideId "14100541"]
[BlackFideId "6337058"]
[WhiteElo "2253"]
[BlackElo "2369"]
[Result "0-1"]
[Round "02"]
[TimeControl "180+2"]
[Date "2023.01.17"]
[WhiteClock "0:00:32"]
[BlackClock "0:00:45"]

1. e4 {[%clk 0:02:58]}  c6 {[%clk 0:02:58]} 2. Nc3 {[%clk 0:02:58]}  d5 {[%clk 0:02:58]} 3. Nf3 {[%clk 0:02:57]}  Bg4 {[%clk 0:02:58]} 4. h3 {[%clk 0:02:57]}  Bxf3 {[%clk 0:02:58]} 5. Qxf3 {[%clk 0:02:57]}  e6 {[%clk 0:02:55]} 6. b3 {[%clk 0:02:57]}  Nf6 {[%clk 0:02:35]} 7. e5 {[%clk 0:02:57]}  Nfd7 {[%clk 0:02:35]} 8. Qg3 {[%clk 0:02:57]}  g5 {[%clk 0:02:12]} 9. h4 {[%clk 0:02:52]}  Bg7 {[%clk 0:02:12]} 10. d4 {[%clk 0:02:49]}  f6 {[%clk 0:02:02]} 11. Be2 {[%clk 0:02:30]}  O-O {[%clk 0:02:00]} 12. hxg5 {[%clk 0:02:28]}  fxe5 {[%clk 0:01:58]} 13. Qh3 {[%clk 0:02:28]}  Rf5 {[%clk 0:01:45]} 14. Qxh7+ {[%clk 0:02:28]}  Kf8 {[%clk 0:01:45]} 15. g4 {[%clk 0:02:13]}  Rf4 {[%clk 0:01:36]} 16. Bxf4 {[%clk 0:02:11]}  exf4 {[%clk 0:01:36]} 17. O-O-O {[%clk 0:02:09]}  c5 {[%clk 0:01:21]} 18. Bf3 {[%clk 0:01:51]}  Nc6 {[%clk 0:01:16]} 19. Nxd5 {[%clk 0:01:46]}  Nxd4 {[%clk 0:01:14]} 20. Rxd4 {[%clk 0:01:33]}  cxd4 {[%clk 0:01:12]} 21. Nxf4 {[%clk 0:01:30]}  Qxg5 {[%clk 0:01:05]} 22. Qe4 {[%clk 0:01:17]}  Nc5 {[%clk 0:01:05]} 23. Qe2 {[%clk 0:00:55]}  Qxf4+ {[%clk 0:01:05]} 24. Kb1 {[%clk 0:00:56]}  d3 {[%clk 0:01:04]} 25. cxd3 {[%clk 0:00:46]}  Qd4 {[%clk 0:01:02]} 26. Rh7 {[%clk 0:00:35]}  Qa1+ {[%clk 0:00:46]} 27. Kc2 {[%clk 0:00:34]}  Qxa2+ {[%clk 0:00:47]} 28. Kd1 {[%clk 0:00:33]}  Qa1+ {[%clk 0:00:44]} 29. Kd2 {[%clk 0:00:31]}  Nxb3+ {[%clk 0:00:45]} 30. Ke3 {[%clk 0:00:32]}  Qd4# {[%clk 0:00:45]} 0-1


[Site "https://www.chess.com"]